[Event "Titled Tuesday Blitz July 18 Early 2023"]
[White "Da Silva Junior, Sediney Mari"]
[Black "Molina, Roberto Junio Brito"]
[WhiteFideId "2132079"]
[BlackFideId "2109450"]
[WhiteElo "2210"]
[BlackElo "2880"]
[Result "0-1"]
[Round "6"]
[TimeControl "180+2"]
[Date "2023.07.18"]
[WhiteClock "0:00:26"]
[BlackClock "0:00:31"]
[Board "94"]

1. e4 {[%clk 0:03:00]}  c5 {[%clk 0:02:58]} 2. c3 {[%clk 0:03:00]}  Nf6 {[%clk 0:02:57]} 3. e5 {[%clk 0:02:59]}  Nd5 {[%clk 0:02:57]} 4. Nf3 {[%clk 0:03:00]}  d6 {[%clk 0:02:56]} 5. d4 {[%clk 0:03:00]}  cxd4 {[%clk 0:02:56]} 6. cxd4 {[%clk 0:03:01]}  e6 {[%clk 0:02:56]} 7. Bc4 {[%clk 0:03:01]}  Nc6 {[%clk 0:02:54]} 8. O-O {[%clk 0:03:01]}  Be7 {[%clk 0:02:52]} 9. Qe2 {[%clk 0:03:01]}  O-O {[%clk 0:02:51]} 10. Nc3 {[%clk 0:03:01]}  Nxc3 {[%clk 0:02:50]} 11. bxc3 {[%clk 0:03:01]}  dxe5 {[%clk 0:02:51]} 12. Nxe5 {[%clk 0:03:00]}  Nxe5 {[%clk 0:02:50]} 13. Qxe5 {[%clk 0:03:01]}  Bf6 {[%clk 0:02:40]} 14. Qh5 {[%clk 0:03:00]}  Bd7 {[%clk 0:02:36]} 15. Bd3 {[%clk 0:02:59]}  g6 {[%clk 0:02:36]} 16. Qf3 {[%clk 0:02:58]}  Bc6 {[%clk 0:02:35]} 17. Qh3 {[%clk 0:02:57]}  Rc8 {[%clk 0:02:31]} 18. Bh6 {[%clk 0:02:56]}  Re8 {[%clk 0:02:31]} 19. Rfe1 {[%clk 0:02:44]}  Qa5 {[%clk 0:02:22]} 20. Rec1 {[%clk 0:02:20]}  Bg5 {[%clk 0:02:16]} 21. f4 {[%clk 0:01:53]}  Bf6 {[%clk 0:02:03]} 22. Qg3 {[%clk 0:01:40]}  Bd5 {[%clk 0:01:42]} 23. f5 {[%clk 0:01:36]}  exf5 {[%clk 0:01:41]} 24. Bxf5 {[%clk 0:01:33]}  Rxc3 {[%clk 0:01:00]} 25. Qxc3 {[%clk 0:00:46]}  Qxc3 {[%clk 0:00:59]} 26. Rxc3 {[%clk 0:00:46]}  Bxd4+ {[%clk 0:00:59]} 27. Re3 {[%clk 0:00:42]}  Rxe3 {[%clk 0:00:47]} 28. Bxe3 {[%clk 0:00:39]}  Bxe3+ {[%clk 0:00:46]} 29. Kf1 {[%clk 0:00:37]}  gxf5 {[%clk 0:00:47]} 30. a4 {[%clk 0:00:33]}  a5 {[%clk 0:00:37]} 31. g3 {[%clk 0:00:28]}  b6 {[%clk 0:00:33]} 32. Rd1 {[%clk 0:00:28]}  Bb3 {[%clk 0:00:31]} 33. Rd8+ {[%clk 0:00:26]}  Kg7 {[%clk 0:00:31]} 0-1


[Site "https://www.chess.com"]

[Event "Titled Tuesday Blitz July 18 Early 2023"]
[White "Der_Balak_3Halak"]
[Black "Borgaonkar Akshay"]
[BlackFideId "25639110"]
[WhiteElo "2481"]
[BlackElo "2625"]
[Result "1/2-1/2"]
[Round "6"]
[TimeControl "180+2"]
[Date "2023.07.18"]
[WhiteClock "0:00:05"]
[BlackClock "0:01:02"]
[Board "99"]

1. c3 {[%clk 0:02:59]}  h6 {[%clk 0:02:43]} 2. d4 {[%clk 0:02:56]}  d5 {[%clk 0:02:41]} 3. Bf4 {[%clk 0:02:52]}  Bf5 {[%clk 0:02:40]} 4. Nf3 {[%clk 0:02:52]}  e6 {[%clk 0:02:37]} 5. h3 {[%clk 0:02:49]}  Nf6 {[%clk 0:02:36]} 6. Nbd2 {[%clk 0:02:50]}  Bd6 {[%clk 0:02:37]} 7. Ne5 {[%clk 0:02:44]}  Nbd7 {[%clk 0:02:35]} 8. Ndf3 {[%clk 0:02:44]}  Ne4 {[%clk 0:02:33]} 9. e3 {[%clk 0:02:40]}  f6 {[%clk 0:02:29]} 10. Nxd7 {[%clk 0:02:18]}  Qxd7 {[%clk 0:02:27]} 11. Bxd6 {[%clk 0:02:14]}  Qxd6 {[%clk 0:02:28]} 12. Bd3 {[%clk 0:02:13]}  O-O-O {[%clk 0:02:24]} 13. Qe2 {[%clk 0:02:05]}  g5 {[%clk 0:02:23]} 14. Nd2 {[%clk 0:02:02]}  Nxd2 {[%clk 0:02:19]} 15. Qxd2 {[%clk 0:02:03]}  Bxd3 {[%clk 0:02:19]} 16. Qxd3 {[%clk 0:02:04]}  f5 {[%clk 0:02:18]} 17. h4 {[%clk 0:01:56]}  gxh4 {[%clk 0:02:16]} 18. Rxh4 {[%clk 0:01:51]}  Rhg8 {[%clk 0:02:16]} 19. g3 {[%clk 0:01:50]}  Rxg3 {[%clk 0:02:16]} 20. O-O-O {[%clk 0:01:43]}  Rg6 {[%clk 0:02:15]} 21. Rdh1 {[%clk 0:01:38]}  Rg2 {[%clk 0:02:11]} 22. Qf1 {[%clk 0:01:29]}  Rdg8 {[%clk 0:02:09]} 23. Rxh6 {[%clk 0:01:28]}  R2g7 {[%clk 0:01:54]} 24. Rh7 {[%clk 0:01:08]}  Qf8 {[%clk 0:01:50]} 25. Qh3 {[%clk 0:00:55]}  Qf6 {[%clk 0:01:48]} 26. Qh2 {[%clk 0:00:31]}  Qf7 {[%clk 0:01:38]} 27. Rh8 {[%clk 0:00:23]}  b6 {[%clk 0:01:36]} 28. Kc2 {[%clk 0:00:20]}  Rg2 {[%clk 0:01:33]} 29. Qxg2 {[%clk 0:00:19]}  Rxh8 {[%clk 0:01:22]} 30. Rxh8+ {[%clk 0:00:20]}  Kb7 {[%clk 0:01:22]} 31. Qg8 {[%clk 0:00:19]}  Qf6 {[%clk 0:01:21]} 32. Qa8+ {[%clk 0:00:18]}  Ka6 {[%clk 0:01:21]} 33. Qc8+ {[%clk 0:00:19]}  Ka5 {[%clk 0:01:21]} 34. Rh1 {[%clk 0:00:16]}  f4 {[%clk 0:01:21]} 35. b4+ {[%clk 0:00:16]}  Kb5 {[%clk 0:01:21]} 36. Qd7+ {[%clk 0:00:13]}  Ka6 {[%clk 0:01:20]} 37. e4 {[%clk 0:00:10]}  Qg6 {[%clk 0:01:19]} 38. Kb3 {[%clk 0:00:08]}  Qxe4 {[%clk 0:01:19]} 39. b5+ {[%clk 0:00:07]}  Ka5 {[%clk 0:01:16]} 40. Qxc7 {[%clk 0:00:04]}  a6 {[%clk 0:01:11]} 41. bxa6 {[%clk 0:00:03]}  Qxh1 {[%clk 0:01:10]} 42. a7 {[%clk 0:00:02]}  Qb1+ {[%clk 0:01:10]} 43. Ka3 {[%clk 0:00:03]}  Qc1+ {[%clk 0:01:10]} 44. Kb3 {[%clk 0:00:03]}  Qb1+ {[%clk 0:01:11]} 45. Ka3 {[%clk 0:00:04]}  Qc1+ {[%clk 0:01:02]} 46. Kb3 {[%clk 0:00:04]}  Qd1+ {[%clk 0:01:01]} 47. Kb2 {[%clk 0:00:04]}  Qd2+ {[%clk 0:01:01]} 48. Kb1 {[%clk 0:00:05]}  Qd1+ {[%clk 0:01:01]} 49. Kb2 {[%clk 0:00:05]}  Qd2+ {[%clk 0:01:02]} 50. Ka3 {[%clk 0:00:05]}  Qc1+ {[%clk 0:01:02]} 1/2-1/2


[Site "https://www.chess.com"]

[Event "Titled Tuesday Blitz July 18 Early 2023"]
[White "Tregubov, Pavel V."]
[Black "Chitlange Sakshi"]
[WhiteFideId "4115341"]
[BlackFideId "35002899"]
[WhiteElo "2618"]
[BlackElo "2439"]
[Result "1-0"]
[Round "6"]
[TimeControl "180+2"]
[Date "2023.07.18"]
[WhiteClock "0:00:08"]
[BlackClock "0:00:05"]
[Board "101"]

1. e4 {[%clk 0:03:00]}  c6 {[%clk 0:02:57]} 2. Nf3 {[%clk 0:03:01]}  d5 {[%clk 0:02:56]} 3. Nc3 {[%clk 0:03:01]}  dxe4 {[%clk 0:02:56]} 4. Nxe4 {[%clk 0:03:01]}  Nf6 {[%clk 0:02:57]} 5. Qe2 {[%clk 0:03:01]}  Nxe4 {[%clk 0:02:56]} 6. Qxe4 {[%clk 0:03:01]}  Qa5 {[%clk 0:02:56]} 7. b4 {[%clk 0:02:48]}  Qd5 {[%clk 0:02:44]} 8. Qf4 {[%clk 0:02:22]}  Qf5 {[%clk 0:02:29]} 9. d3 {[%clk 0:01:53]}  e5 {[%clk 0:02:09]} 10. Qxf5 {[%clk 0:01:51]}  Bxb4+ {[%clk 0:02:00]} 11. Bd2 {[%clk 0:01:51]}  Bxd2+ {[%clk 0:02:00]} 12. Kxd2 {[%clk 0:01:52]}  Bxf5 {[%clk 0:02:01]} 13. Nxe5 {[%clk 0:01:52]}  Nd7 {[%clk 0:01:58]} 14. Nc4 {[%clk 0:01:46]}  Ke7 {[%clk 0:01:46]} 15. Na5 {[%clk 0:01:30]}  Rab8 {[%clk 0:01:42]} 16. Rb1 {[%clk 0:01:26]}  Nc5 {[%clk 0:01:17]} 17. Be2 {[%clk 0:01:23]}  Kd6 {[%clk 0:01:14]} 18. Bf3 {[%clk 0:01:21]}  Bd7 {[%clk 0:01:12]} 19. d4 {[%clk 0:01:18]}  Ne6 {[%clk 0:01:10]} 20. Nxb7+ {[%clk 0:00:59]}  Kc7 {[%clk 0:01:09]} 21. Nc5 {[%clk 0:00:55]}  Nxc5 {[%clk 0:00:55]} 22. dxc5 {[%clk 0:00:55]}  Be6 {[%clk 0:00:53]} 23. Kc3 {[%clk 0:00:51]}  a5 {[%clk 0:00:34]} 24. a3 {[%clk 0:00:49]}  Rhd8 {[%clk 0:00:24]} 25. Rxb8 {[%clk 0:00:45]}  Rxb8 {[%clk 0:00:24]} 26. Rd1 {[%clk 0:00:45]}  Rb5 {[%clk 0:00:22]} 27. Kd4 {[%clk 0:00:40]}  Rb2 {[%clk 0:00:20]} 28. Be4 {[%clk 0:00:25]}  Ra2 {[%clk 0:00:16]} 29. Ke5 {[%clk 0:00:25]}  Rxa3 {[%clk 0:00:15]} 30. Rd6 {[%clk 0:00:24]}  Bd7 {[%clk 0:00:15]} 31. Bxh7 {[%clk 0:00:18]}  Rc3 {[%clk 0:00:14]} 32. Kd4 {[%clk 0:00:17]}  Ra3 {[%clk 0:00:14]} 33. Bd3 {[%clk 0:00:16]}  Ra1 {[%clk 0:00:13]} 34. Kc3 {[%clk 0:00:14]}  a4 {[%clk 0:00:13]} 35. Rd4 {[%clk 0:00:14]}  Rg1 {[%clk 0:00:13]} 36. g3 {[%clk 0:00:13]}  a3 {[%clk 0:00:13]} 37. Ra4 {[%clk 0:00:13]}  Rg2 {[%clk 0:00:13]} 38. f4 {[%clk 0:00:09]}  Rxh2 {[%clk 0:00:12]} 39. Rxa3 {[%clk 0:00:10]}  Rg2 {[%clk 0:00:13]} 40. Ra7+ {[%clk 0:00:10]}  Kd8 {[%clk 0:00:13]} 41. Kd4 {[%clk 0:00:10]}  Rxg3 {[%clk 0:00:13]} 42. Ke5 {[%clk 0:00:10]}  Ke7 {[%clk 0:00:12]} 43. Bf5 {[%clk 0:00:09]}  f6+ {[%clk 0:00:05]} 44. Kd4 {[%clk 0:00:08]} 1-0


[Site "https://www.chess.com"]

[Event "Titled Tuesday Blitz July 18 Early 2023"]
[White "Bueno, Alfeu Junior Varela"]
[Black "Sadykov, Ramil"]
[WhiteFideId "2108879"]
[BlackFideId "24113590"]
[WhiteElo "2418"]
[BlackElo "2580"]
[Result "0-1"]
[Round "6"]
[TimeControl "180+2"]
[Date "2023.07.18"]
[WhiteClock "0:00:00"]
[BlackClock "0:00:42"]
[Board "105"]

1. e4 {[%clk 0:02:57]}  c5 {[%clk 0:02:53]} 2. Nc3 {[%clk 0:02:56]}  e6 {[%clk 0:02:52]} 3. f4 {[%clk 0:02:57]}  Nc6 {[%clk 0:02:48]} 4. Nf3 {[%clk 0:02:56]}  Nge7 {[%clk 0:02:47]} 5. Bb5 {[%clk 0:02:55]}  g6 {[%clk 0:02:46]} 6. e5 {[%clk 0:02:50]}  Bg7 {[%clk 0:02:07]} 7. Ne4 {[%clk 0:02:49]}  O-O {[%clk 0:02:07]} 8. Bxc6 {[%clk 0:02:34]}  Nxc6 {[%clk 0:01:58]} 9. Nxc5 {[%clk 0:02:33]}  d6 {[%clk 0:01:58]} 10. exd6 {[%clk 0:02:25]}  Qxd6 {[%clk 0:01:59]} 11. Nd3 {[%clk 0:02:23]}  b6 {[%clk 0:01:54]} 12. g3 {[%clk 0:01:44]}  Ba6 {[%clk 0:01:54]} 13. Nf2 {[%clk 0:01:43]}  e5 {[%clk 0:01:50]} 14. Ne4 {[%clk 0:01:24]}  Qb4 {[%clk 0:01:47]} 15. Nc3 {[%clk 0:01:05]}  exf4 {[%clk 0:01:47]} 16. Kf2 {[%clk 0:00:59]}  fxg3+ {[%clk 0:01:44]} 17. hxg3 {[%clk 0:01:00]}  Nd4 {[%clk 0:01:37]} 18. Re1 {[%clk 0:00:43]}  Bb7 {[%clk 0:01:34]} 19. Ne4 {[%clk 0:00:27]}  Nxf3 {[%clk 0:01:16]} 20. Qxf3 {[%clk 0:00:28]}  Rae8 {[%clk 0:00:46]} 21. d3 {[%clk 0:00:11]}  f5 {[%clk 0:00:43]} 22. Bd2 {[%clk 0:00:00]}  fxe4 {[%clk 0:00:42]} 0-1


[Site "https://www.chess.com"]

[Event "Titled Tuesday Blitz July 18 Early 2023"]
[White "ArturoCaceres"]
[Black "Gontcharov, Vladislav"]
[BlackFideId "4123492"]
[WhiteElo "2393"]
[BlackElo "2575"]
[Result "1/2-1/2"]
[Round "6"]
[TimeControl "180+2"]
[Date "2023.07.18"]
[WhiteClock "0:00:03"]
[BlackClock "0:00:09"]
[Board "107"]

1. f3 {[%clk 0:03:00]}  d5 {[%clk 0:02:55]} 2. Kf2 {[%clk 0:03:00]}  e5 {[%clk 0:02:51]} 3. e3 {[%clk 0:02:56]}  Nf6 {[%clk 0:02:50]} 4. d4 {[%clk 0:02:54]}  Nbd7 {[%clk 0:02:48]} 5. Ne2 {[%clk 0:02:50]}  c5 {[%clk 0:02:46]} 6. c3 {[%clk 0:02:49]}  Bd6 {[%clk 0:02:46]} 7. h3 {[%clk 0:02:47]}  O-O {[%clk 0:02:45]} 8. Na3 {[%clk 0:02:44]}  a6 {[%clk 0:02:44]} 9. Nc2 {[%clk 0:02:44]}  b5 {[%clk 0:02:44]} 10. Ng3 {[%clk 0:02:44]}  Nb6 {[%clk 0:02:41]} 11. Bd3 {[%clk 0:02:41]}  Qc7 {[%clk 0:02:38]} 12. dxc5 {[%clk 0:02:23]}  Bxc5 {[%clk 0:02:34]} 13. Bf5 {[%clk 0:02:23]}  Nc4 {[%clk 0:02:16]} 14. Qe2 {[%clk 0:02:22]}  Re8 {[%clk 0:02:13]} 15. Rd1 {[%clk 0:02:20]}  Bb7 {[%clk 0:02:07]} 16. Bd3 {[%clk 0:02:09]}  Rad8 {[%clk 0:02:04]} 17. Bxc4 {[%clk 0:02:08]}  bxc4 {[%clk 0:02:04]} 18. Nf1 {[%clk 0:01:51]}  Bb6 {[%clk 0:02:01]} 19. Kg1 {[%clk 0:01:49]}  d4 {[%clk 0:01:59]} 20. Na3 {[%clk 0:01:31]}  d3 {[%clk 0:01:57]} 21. Qf2 {[%clk 0:01:22]}  Nd5 {[%clk 0:01:47]} 22. Kh1 {[%clk 0:01:10]}  Re6 {[%clk 0:01:45]} 23. Qh4 {[%clk 0:01:07]}  Rc8 {[%clk 0:01:41]} 24. e4 {[%clk 0:01:05]}  Ne7 {[%clk 0:01:32]} 25. Be3 {[%clk 0:01:02]}  Ng6 {[%clk 0:01:29]} 26. Qf2 {[%clk 0:01:02]}  Ba5 {[%clk 0:01:21]} 27. Bd2 {[%clk 0:00:34]}  Qe7 {[%clk 0:01:13]} 28. Qg3 {[%clk 0:00:28]}  Qf6 {[%clk 0:01:11]} 29. Ne3 {[%clk 0:00:26]}  Rec6 {[%clk 0:01:07]} 30. Nd5 {[%clk 0:00:24]}  Qe6 {[%clk 0:01:03]} 31. Be3 {[%clk 0:00:20]}  h6 {[%clk 0:01:00]} 32. Bd2 {[%clk 0:00:20]}  Kh7 {[%clk 0:01:00]} 33. h4 {[%clk 0:00:19]}  f5 {[%clk 0:00:58]} 34. h5 {[%clk 0:00:18]}  Nf8 {[%clk 0:00:59]} 35. Qh3 {[%clk 0:00:16]}  f4 {[%clk 0:00:57]} 36. Qxe6 {[%clk 0:00:14]}  Rxe6 {[%clk 0:00:57]} 37. Nb4 {[%clk 0:00:14]}  Nd7 {[%clk 0:00:55]} 38. Kg1 {[%clk 0:00:11]}  Nf6 {[%clk 0:00:54]} 39. Kf2 {[%clk 0:00:10]}  Nxh5 {[%clk 0:00:54]} 40. Rh1 {[%clk 0:00:10]}  Ng3 {[%clk 0:00:54]} 41. Rh3 {[%clk 0:00:11]}  Bb6+ {[%clk 0:00:54]} 42. Ke1 {[%clk 0:00:10]}  g5 {[%clk 0:00:54]} 43. Nd5 {[%clk 0:00:10]}  Bxd5 {[%clk 0:00:54]} 44. exd5 {[%clk 0:00:11]}  Rd6 {[%clk 0:00:53]} 45. b3 {[%clk 0:00:11]}  cxb3 {[%clk 0:00:52]} 46. axb3 {[%clk 0:00:12]}  Rxd5 {[%clk 0:00:52]} 47. Nc4 {[%clk 0:00:12]}  Rxc4 {[%clk 0:00:36]} 48. bxc4 {[%clk 0:00:12]}  Ra5 {[%clk 0:00:36]} 49. Rxa5 {[%clk 0:00:12]}  Bxa5 {[%clk 0:00:36]} 50. Kd1 {[%clk 0:00:12]}  Kg6 {[%clk 0:00:35]} 51. Be1 {[%clk 0:00:12]}  Nf5 {[%clk 0:00:34]} 52. Kd2 {[%clk 0:00:11]}  Nd6 {[%clk 0:00:31]} 53. Kxd3 {[%clk 0:00:11]}  Nb7 {[%clk 0:00:29]} 54. Bf2 {[%clk 0:00:11]}  h5 {[%clk 0:00:28]} 55. Rh1 {[%clk 0:00:11]}  g4 {[%clk 0:00:26]} 56. Rb1 {[%clk 0:00:11]}  Nd8 {[%clk 0:00:25]} 57. Ra1 {[%clk 0:00:12]}  Bc7 {[%clk 0:00:24]} 58. Rxa6+ {[%clk 0:00:11]}  Kf5 {[%clk 0:00:24]} 59. Bh4 {[%clk 0:00:10]}  Ne6 {[%clk 0:00:24]} 60. Rc6 {[%clk 0:00:07]}  Ba5 {[%clk 0:00:21]} 61. c5 {[%clk 0:00:07]}  gxf3 {[%clk 0:00:16]} 62. gxf3 {[%clk 0:00:08]}  Ng5 {[%clk 0:00:16]} 63. Bxg5 {[%clk 0:00:08]}  Kxg5 {[%clk 0:00:17]} 64. Ra6 {[%clk 0:00:06]}  Bd8 {[%clk 0:00:17]} 65. Ke4 {[%clk 0:00:06]}  h4 {[%clk 0:00:16]} 66. Ra1 {[%clk 0:00:07]}  h3 {[%clk 0:00:17]} 67. Rg1+ {[%clk 0:00:06]}  Kh4 {[%clk 0:00:15]} 68. Rg8 {[%clk 0:00:06]}  Be7 {[%clk 0:00:15]} 69. Rg4+ {[%clk 0:00:03]}  Kh5 {[%clk 0:00:14]} 70. Rg7 {[%clk 0:00:04]}  Bg5 {[%clk 0:00:14]} 71. Kf5 {[%clk 0:00:02]}  Bh6 {[%clk 0:00:13]} 72. Rg1 {[%clk 0:00:03]}  Bf8 {[%clk 0:00:13]} 73. Rh1 {[%clk 0:00:03]}  Kh4 {[%clk 0:00:13]} 74. c6 {[%clk 0:00:04]}  Bd6 {[%clk 0:00:13]} 75. Rg1 {[%clk 0:00:05]}  h2 {[%clk 0:00:12]} 76. Rh1 {[%clk 0:00:05]}  Kg3 {[%clk 0:00:13]} 77. Ke6 {[%clk 0:00:04]}  Bb8 {[%clk 0:00:12]} 78. Kd7 {[%clk 0:00:03]}  Kg2 {[%clk 0:00:12]} 79. Rb1 {[%clk 0:00:03]}  h1=Q {[%clk 0:00:12]} 80. Rxb8 {[%clk 0:00:03]}  Qh7+ {[%clk 0:00:11]} 81. Kd6 {[%clk 0:00:04]}  Qg6+ {[%clk 0:00:12]} 82. Kc5 {[%clk 0:00:04]}  Qf7 {[%clk 0:00:10]} 83. Kb6 {[%clk 0:00:03]}  Qe6 {[%clk 0:00:10]} 84. Kb7 {[%clk 0:00:02]}  Qd5 {[%clk 0:00:10]} 85. Kb6 {[%clk 0:00:02]}  Qb3+ {[%clk 0:00:09]} 86. Ka7 {[%clk 0:00:02]}  Qa4+ {[%clk 0:00:08]} 87. Kb7 {[%clk 0:00:02]}  Qb5+ {[%clk 0:00:08]} 88. Kc7 {[%clk 0:00:02]}  Qc4 {[%clk 0:00:09]} 89. Kd7 {[%clk 0:00:02]}  Kxf3 {[%clk 0:00:08]} 90. c7 {[%clk 0:00:02]}  Qxc3 {[%clk 0:00:09]} 91. c8=Q {[%clk 0:00:02]}  Qxc8+ {[%clk 0:00:09]} 92. Rxc8 {[%clk 0:00:03]}  e4 {[%clk 0:00:09]} 93. Ke6 {[%clk 0:00:04]}  e3 {[%clk 0:00:09]} 94. Rc3 {[%clk 0:00:05]}  Ke2 {[%clk 0:00:09]} 95. Kf5 {[%clk 0:00:05]}  f3 {[%clk 0:00:09]} 96. Ke4 {[%clk 0:00:06]}  f2 {[%clk 0:00:09]} 97. Rxe3+ {[%clk 0:00:06]}  Kd1 {[%clk 0:00:09]} 98. Rf3 {[%clk 0:00:06]}  Ke1 {[%clk 0:00:10]} 99. Re3+ {[%clk 0:00:06]}  Kd1 {[%clk 0:00:09]} 100. Rd3+ {[%clk 0:00:06]}  Ke1 {[%clk 0:00:09]} 101. Re3+ {[%clk 0:00:03]}  Kd1 {[%clk 0:00:09]} 1/2-1/2


[Site "https://www.chess.com"]

[Event "Titled Tuesday Blitz July 18 Early 2023"]
[White "Slovineanu, Viacheslav"]
[Black "Kashlinskaya, Alina"]
[WhiteFideId "13900510"]
[BlackFideId "4198026"]
[WhiteElo "2385"]
[BlackElo "2573"]
[Result "0-1"]
[Round "6"]
[TimeControl "180+2"]
[Date "2023.07.18"]
[WhiteClock "0:00:14"]
[BlackClock "0:01:51"]
[Board "108"]

1. d4 {[%clk 0:02:57]}  Nf6 {[%clk 0:02:58]} 2. Nf3 {[%clk 0:02:54]}  g6 {[%clk 0:02:59]} 3. Nbd2 {[%clk 0:02:52]}  Bg7 {[%clk 0:02:59]} 4. e4 {[%clk 0:02:51]}  d6 {[%clk 0:03:00]} 5. Bd3 {[%clk 0:02:51]}  O-O {[%clk 0:03:00]} 6. O-O {[%clk 0:02:52]}  c5 {[%clk 0:03:00]} 7. c3 {[%clk 0:02:51]}  cxd4 {[%clk 0:02:48]} 8. cxd4 {[%clk 0:02:51]}  Nc6 {[%clk 0:02:49]} 9. Re1 {[%clk 0:02:51]}  e5 {[%clk 0:02:44]} 10. d5 {[%clk 0:02:48]}  Ne7 {[%clk 0:02:38]} 11. a4 {[%clk 0:02:28]}  Nh5 {[%clk 0:02:37]} 12. Nc4 {[%clk 0:02:23]}  Nf4 {[%clk 0:02:34]} 13. Bf1 {[%clk 0:02:13]}  f5 {[%clk 0:02:33]} 14. Bxf4 {[%clk 0:01:57]}  exf4 {[%clk 0:02:33]} 15. e5 {[%clk 0:01:58]}  dxe5 {[%clk 0:02:33]} 16. d6 {[%clk 0:01:57]}  e4 {[%clk 0:02:18]} 17. dxe7 {[%clk 0:01:56]}  Qxe7 {[%clk 0:02:19]} 18. Nfd2 {[%clk 0:01:35]}  Be6 {[%clk 0:02:18]} 19. Qb3 {[%clk 0:01:28]}  Rfd8 {[%clk 0:02:17]} 20. Qa3 {[%clk 0:01:23]}  Qxa3 {[%clk 0:02:10]} 21. Rxa3 {[%clk 0:01:20]}  Rac8 {[%clk 0:02:11]} 22. b3 {[%clk 0:01:14]}  Bc3 {[%clk 0:02:09]} 23. Re2 {[%clk 0:01:04]}  Bxc4 {[%clk 0:01:54]} 24. Nxc4 {[%clk 0:00:58]}  Rd1 {[%clk 0:01:54]} 25. Rc2 {[%clk 0:00:47]}  Bb4 {[%clk 0:01:53]} 26. Raa2 {[%clk 0:00:36]}  Rcd8 {[%clk 0:01:52]} 27. h4 {[%clk 0:00:30]}  Rxf1+ {[%clk 0:01:51]} 28. Kh2 {[%clk 0:00:14]}  Rdd1 {[%clk 0:01:51]} 0-1


[Site "https://www.chess.com"]

[Event "Titled Tuesday Blitz July 18 Early 2023"]
[White "Li, Hui"]
[Black "Souleidis, Georgios"]
[WhiteFideId "15400310"]
[BlackFideId "4206827"]
[WhiteElo "2364"]
[BlackElo "2565"]
[Result "1-0"]
[Round "6"]
[TimeControl "180+2"]
[Date "2023.07.18"]
[WhiteClock "0:00:01"]
[BlackClock "0:00:00"]
[Board "109"]

1. e4 {[%clk 0:03:00]}  c5 {[%clk 0:03:00]} 2. Nf3 {[%clk 0:03:00]}  e6 {[%clk 0:03:00]} 3. d4 {[%clk 0:03:00]}  cxd4 {[%clk 0:03:01]} 4. Nxd4 {[%clk 0:03:01]}  Nf6 {[%clk 0:03:01]} 5. Nc3 {[%clk 0:03:01]}  Nc6 {[%clk 0:03:01]} 6. Ndb5 {[%clk 0:03:01]}  Bc5 {[%clk 0:03:01]} 7. Bf4 {[%clk 0:02:53]}  O-O {[%clk 0:02:58]} 8. Bc7 {[%clk 0:02:50]}  Qe7 {[%clk 0:02:57]} 9. Bd6 {[%clk 0:02:50]}  Bxd6 {[%clk 0:02:58]} 10. Qxd6 {[%clk 0:02:47]}  Qd8 {[%clk 0:02:58]} 11. O-O-O {[%clk 0:02:35]}  a6 {[%clk 0:02:58]} 12. Nd4 {[%clk 0:02:35]}  Ne7 {[%clk 0:02:57]} 13. Be2 {[%clk 0:02:21]}  Ne8 {[%clk 0:02:56]} 14. Qg3 {[%clk 0:02:18]}  b5 {[%clk 0:02:55]} 15. e5 {[%clk 0:02:09]}  Bb7 {[%clk 0:02:52]} 16. Bf3 {[%clk 0:02:07]}  Qb6 {[%clk 0:02:43]} 17. Kb1 {[%clk 0:01:28]}  Rc8 {[%clk 0:02:40]} 18. Rhe1 {[%clk 0:01:20]}  f5 {[%clk 0:02:11]} 19. exf6 {[%clk 0:01:14]}  Nxf6 {[%clk 0:02:11]} 20. Bxb7 {[%clk 0:01:07]}  Qxb7 {[%clk 0:02:10]} 21. f3 {[%clk 0:01:07]}  Rxc3 {[%clk 0:02:02]} 22. bxc3 {[%clk 0:01:06]}  Ned5 {[%clk 0:02:02]} 23. Ka1 {[%clk 0:00:50]}  Nxc3 {[%clk 0:01:58]} 24. Rd3 {[%clk 0:00:46]}  Nfd5 {[%clk 0:01:30]} 25. Ne2 {[%clk 0:00:39]}  Nxe2 {[%clk 0:01:16]} 26. Rxe2 {[%clk 0:00:40]}  Qb6 {[%clk 0:01:16]} 27. Red2 {[%clk 0:00:32]}  Rc8 {[%clk 0:00:57]} 28. Qe5 {[%clk 0:00:14]}  Qg1+ {[%clk 0:00:52]} 29. Kb2 {[%clk 0:00:13]}  Qc5 {[%clk 0:00:43]} 30. Rxd5 {[%clk 0:00:11]}  exd5 {[%clk 0:00:41]} 31. Qxd5+ {[%clk 0:00:12]}  Qxd5 {[%clk 0:00:35]} 32. Rxd5 {[%clk 0:00:13]}  Re8 {[%clk 0:00:24]} 33. Rxd7 {[%clk 0:00:12]}  Re2 {[%clk 0:00:24]} 34. Rd8+ {[%clk 0:00:08]}  Kf7 {[%clk 0:00:23]} 35. Rd7+ {[%clk 0:00:09]}  Kf8 {[%clk 0:00:24]} 36. g4 {[%clk 0:00:04]}  Rxh2 {[%clk 0:00:24]} 37. Ra7 {[%clk 0:00:04]}  Rf2 {[%clk 0:00:19]} 38. Rxa6 {[%clk 0:00:03]}  Rxf3 {[%clk 0:00:19]} 39. Rb6 {[%clk 0:00:03]}  Rf4 {[%clk 0:00:15]} 40. Rxb5 {[%clk 0:00:03]}  Rxg4 {[%clk 0:00:15]} 41. Kb3 {[%clk 0:00:04]}  g6 {[%clk 0:00:15]} 42. a4 {[%clk 0:00:04]}  h5 {[%clk 0:00:14]} 43. a5 {[%clk 0:00:04]}  Rg1 {[%clk 0:00:13]} 44. a6 {[%clk 0:00:03]}  Ra1 {[%clk 0:00:10]} 45. Rb8+ {[%clk 0:00:02]}  Kg7 {[%clk 0:00:10]} 46. Rb7+ {[%clk 0:00:02]}  Kh6 {[%clk 0:00:11]} 47. a7 {[%clk 0:00:01]}  h4 {[%clk 0:00:11]} 48. Kc4 {[%clk 0:00:01]}  Kg5 {[%clk 0:00:09]} 49. Kd3 {[%clk 0:00:01]}  Kg4 {[%clk 0:00:09]} 50. Ke2 {[%clk 0:00:01]}  g5 {[%clk 0:00:08]} 51. Rh7 {[%clk 0:00:02]}  Ra2 {[%clk 0:00:08]} 52. Kd3 {[%clk 0:00:02]}  Kg3 {[%clk 0:00:08]} 53. c4 {[%clk 0:00:02]}  g4 {[%clk 0:00:09]} 54. c5 {[%clk 0:00:02]}  h3 {[%clk 0:00:07]} 55. c6 {[%clk 0:00:03]}  h2 {[%clk 0:00:07]} 56. c7 {[%clk 0:00:02]}  Rxa7 {[%clk 0:00:07]} 57. c8=Q {[%clk 0:00:02]}  Rxh7 {[%clk 0:00:08]} 58. Qb8+ {[%clk 0:00:02]}  Kg2 {[%clk 0:00:08]} 59. Qa8+ {[%clk 0:00:02]}  Kg3 {[%clk 0:00:08]} 60. Qb8+ {[%clk 0:00:03]}  Kh3 {[%clk 0:00:03]} 61. Qb3 {[%clk 0:00:01]}  g3 {[%clk 0:00:01]} 62. Kd4 {[%clk 0:00:01]}  Rh4+ {[%clk 0:00:00]} 63. Ke5 {[%clk 0:00:01]} 1-0


[Site "https://www.chess.com"]